[Event "Nacional Masters POR 2017-18"]
[Site "Cascais"]
[Date "2018.08.11"]
[Round "1"]
[White "Padeiro, Jose Joao Tato"]
[Black "Dias, Paulo"]
[Result "1/2-1/2"]
[ECO "A53"]
[WhiteElo "2241"]
[BlackElo "2328"]
[Annotator "NA RC"]
[PlyCount "95"]
[EventDate "2018.08.11"]
[EventType "tourn"]
[EventCountry "POR"]
[SourceTitle "playchess.com"]
[Source "ChessBase"]
[SourceQuality "1"]
[TimeControl "5400+30"]

1. d4 {[%emt 0:00:00]} Nf6 {[%emt 0:00:44]} 2. c4 {[%emt 0:00:00]} d6 {[%emt 0:02:44]} 3. Nf3 {[%emt 0:01:45]} Nbd7 {[%emt 0:00:22]} 4. g3 {[%emt 0:03:17]} e5 {[%emt 0:02:30]} 5. Bg2 {[%emt 0:00:05]} Be7 {[%emt 0:00:31]} 6. Nc3 {[%emt 0:00:20]} O-O {[%emt 0:00:09]} 7. O-O {[%emt 0:00:05]} c6 {[%emt 0:02:35]} 8. e4 {[%emt 0:02:24]} a5 {[%emt 0:02:32]} 9. Qc2 {[%emt 0:05:38]} Re8 {[%emt 0:03:41]} 10. d5 {[%emt 0:03:39]} Nb6 {[%emt 0:10:35]} 11. b3 {[%emt 0:04:10]} a4 {[%emt 0:06:57]} 12. Ba3 {[%emt 0:05:49]} Bf8 {[%emt 0:03:08]} 13. Ne1 {[%emt 0:11:07]} g6 {[%emt 0:03:59]} 14. Nd3 {[%emt 0:00:57]} c5 {[%emt 0:03:20]} 15. Nd1 {[%emt 0:08:04]} h5 {[%emt 0:03:51]} 16. b4 {[%emt 0:13:49]} cxb4 {[%emt 0:04:28]} 17. Bxb4 {[%emt 0:00:06]} Qc7 {[%emt 0:00:57]} 18. Rc1 {[%emt 0:02:17]} Nbd7 {[%emt 0:04:32]} 19. c5 {[%emt 0:04:24]} dxc5 {[%emt 0:00:42]} 20. Nxc5 {[%emt 0:00:32]} Bxc5 {[%emt 0:14:33]} 21. Bxc5 {[%emt 0:00:11]} b6 {[%emt 0:00:23]} 22. Bb4 {[%emt 0:06:15]} Qxc2 {[%emt 0:00:20]} 23. Rxc2 {[%emt 0:00:01]} Ba6 {[%emt 0:00:45]} 24. Re1 {[%emt 0:00:06]} Rec8 {[%emt 0:01:12]} 25. Rxc8+ {[%emt 0:03:41]} Rxc8 {[%emt 0:00:09]} 26. Nc3 {[%emt 0:00:31]} a3 {[%emt 0:04:17]} 27. Nd1 {[%emt 0:05:32]} Rc2 {[%emt 0:01:10]} 28. Bxa3 {[%emt 0:00:09]} Rxa2 {[%emt 0:00:11]} 29. Be7 {[%emt 0:01:32]} Ra1 {[%emt 0:06:09]} 30. f3 {[%emt 0:02:36]} g5 {[%emt 0:00:06]} 31. Bf1 {[%emt 0:01:50]} g4 {[%emt 0:05:06]} 32. Bxa6 {[%emt 0:00:44]} Rxa6 {[%emt 0:00:02]} 33. fxg4 {[%emt 0:02:36]} hxg4 {[%emt 0:00:04]} 34. Nf2 {[%emt 0:00:29]} Ra4 {[%emt 0:00:22]} 35. Re2 {[%emt 0:01:29]} Kg7 {[%emt 0:00:18]} 36. Kg2 {[%emt 0:00:17]} Rd4 {[%emt 0:01:01]} 37. h3 {[%emt 0:01:21]} gxh3+ {[%emt 0:00:12]} 38. Kxh3 {[%emt 0:00:01]} Nc5 {[%emt 0:03:19]} 39. Bxc5 {[%emt 0:01:13]} bxc5 {[%emt 0:00:07]} 40. Kg2 {[%emt 0:00:06]} Ra4 {[%emt 0:02:03]} 41. Kf3 {[%emt 0:00:27]} c4 {[%emt 0:01:54]} 42. Rc2 {[%emt 0:00:55]} Ne8 {[%emt 0:01:47]} 43. Ng4 {[%emt 0:01:57]} Ra3+ {[%emt 0:01:19]} 44. Kg2 {[%emt 0:01:12]} Nd6 {[%emt 0:01:05]} 45. Nxe5 {[%emt 0:02:03]} Nxe4 {[%emt 0:00:59]} 46. Rxc4 {[%emt 0:00:53]} Rxg3+ {[%emt 0:00:44]} 47. Kh2 {[%emt 0:00:56]} Re3 {[%emt 0:00:03]} 48. Ng4 {[%emt 0:01:28]} 1/2-1/2

[Event "Nacional Masters POR 2017-18"]
[Site "Cascais"]
[Date "2018.08.11"]
[Round "1"]
[White "Guerra, Vitor Manuel Vestia"]
[Black "Dias, Ivo Rodrigues"]
[Result "1/2-1/2"]
[ECO "A46"]
[WhiteElo "2127"]
[BlackElo "2164"]
[Annotator "NA"]
[PlyCount "20"]
[EventDate "2018.08.11"]
[EventType "tourn"]
[EventCountry "POR"]
[SourceTitle "playchess.com"]
[Source "ChessBase"]
[SourceQuality "1"]
[TimeControl "5400+30"]

1. d4 {[%emt 0:00:00]} Nf6 {[%emt 0:00:00]} 2. Nf3 {[%emt 0:00:31]} e6 {[%emt 0:00:10]} 3. c4 {[%emt 0:00:40]} d5 {[%emt 0:00:15]} 4. cxd5 {[%emt 0:01:13]} exd5 {[%emt 0:00:09]} 5. Nc3 {[%emt 0:01:23]} c6 {[%emt 0:05:46]} 6. Bg5 {[%emt 0:05:03]} Be6 {[%emt 0:05:44]} 7. e3 {[%emt 0:05:10]} Nbd7 {[%emt 0:00:21]} 8. Bd3 {[%emt 0:00:36]} Bd6 {[%emt 0:00:11]} 9. Qc2 {[%emt 0:00:52]} Qc7 {[%emt 0:01:50]} 10. a3 {[%emt 0:02:14]} a6 {[%emt 0:02:37]} 1/2-1/2

[Event "Nacional Masters POR 2017-18"]
[Site "Cascais"]
[Date "2018.08.12"]
[Round "2"]
[White "Dias, Paulo"]
[Black "Dias, Ivo Rodrigues"]
[Result "0-1"]
[ECO "D35"]
[WhiteElo "2328"]
[BlackElo "2164"]
[Annotator "NA RC"]
[PlyCount "62"]
[EventDate "2018.08.11"]
[EventType "tourn"]
[EventCountry "POR"]
[SourceTitle "playchess.com"]
[Source "ChessBase"]
[SourceQuality "1"]
[TimeControl "5400+30"]

1. d4 {[%emt 0:12:57]} Nf6 {[%emt 0:00:00]} 2. c4 {[%emt 0:00:13]} e6 {[%emt 0:00:00]} 3. Nc3 {[%emt 0:00:34]} d5 {[%emt 0:00:00]} 4. cxd5 {[%emt 0:00:50]} exd5 {[%emt 0:00:05]} 5. Bg5 {[%emt 0:00:15]} Bb4 {[%emt 0:07:11]} 6. e3 {[%emt 0:04:19]} h6 {[%emt 0:09:43]} 7. Bh4 {[%emt 0:01:28]} g5 {[%emt 0:00:35]} 8. Bg3 {[%emt 0:00:08]} Ne4 {[%emt 0:00:06]} 9. Rc1 {[%emt 0:05:10]} c6 {[%emt 0:04:40]} 10. Bd3 {[%emt 0:06:14]} Nxg3 {[%emt 0:00:20]} 11. fxg3 $11 {[%emt 0:04:26]} Qe7 {[%emt 0:07:18]} 12. Qf3 {[%emt 0:00:17]} Be6 {[%emt 0:07:04]} 13. Nge2 {[%emt 0:03:00]} Nd7 {[%emt 0:00:47]} 14. O-O {[%emt 0:01:52]} Bd6 {[%emt 0:10:24]} 15. e4 {[%emt 0:05:56]} dxe4 {[%emt 0:00:48]} 16. Nxe4 {[%emt 0:00:44]} O-O-O {[%emt 0:04:05]} 17. N2c3 {[%emt 0:08:15]} Kb8 {[%emt 0:01:49]} 18. Kh1 {[%emt 0:04:13]} Bc7 {[%emt 0:08:25]} 19. b4 {[%emt 0:04:08]} Qxb4 {[%emt 0:04:15]} 20. Ne2 {[%emt 0:07:18]} Bb6 {[%emt 0:02:36]} 21. Rb1 {[%emt 0:04:22]} Qa3 {[%emt 0:00:36]} 22. Rfc1 {[%emt 0:03:05]} Ne5 {[%emt 0:02:38]} 23. dxe5 {[%emt 0:03:01]} Qxd3 {[%emt 0:01:39]} 24. a4 {[%emt 0:00:53]} Qxf3 {[%emt 0:08:43]} 25. gxf3 {[%emt 0:00:08]} Rd5 {[%emt 0:00:16]} 26. f4 {[%emt 0:02:17]} Bg4 {[%emt 0:01:08]} 27. Ng1 {[%emt 0:01:30]} Bf5 {[%emt 0:02:01]} 28. Rc4 {[%emt 0:01:14]} Rhd8 {[%emt 0:00:30]} 29. Nf3 {[%emt 0:01:23]} Rd4 {[%emt 0:03:55]} 30. Rxd4 {[%emt 0:05:13]} Rxd4 {[%emt 0:00:22]} 31. Ned2 {[%emt 0:02:33]} Rxa4 {[%emt 0:00:45]} 0-1

[Event "Nacional Masters POR 2017-18"]
[Site "Cascais"]
[Date "2018.08.12"]
[Round "2"]
[White "Margarido, Jose Miguel Teixeir"]
[Black "Santos, Jose Alves"]
[Result "0-1"]
[ECO "D02"]
[WhiteElo "2081"]
[BlackElo "2118"]
[Annotator "NA"]
[PlyCount "78"]
[EventDate "2018.08.11"]
[EventType "tourn"]
[EventCountry "POR"]
[SourceTitle "playchess.com"]
[Source "ChessBase"]
[SourceQuality "1"]
[TimeControl "5400+30"]

1. d4 {[%emt 0:00:00]} d5 {[%emt 0:00:00]} 2. Nf3 {[%emt 0:00:10]} e6 {[%emt 0:00:14]} 3. c4 {[%emt 0:00:21]} Nf6 {[%emt 0:02:58]} 4. g3 {[%emt 0:01:51]} c6 {[%emt 0:05:03]} 5. Qc2 {[%emt 0:01:14]} Ne4 {[%emt 0:00:39]} 6. Bg2 {[%emt 0:01:27]} f5 {[%emt 0:01:22]} 7. O-O {[%emt 0:00:30]} Be7 {[%emt 0:00:30]} 8. b3 {[%emt 0:01:00]} O-O {[%emt 0:00:26]} 9. Ba3 {[%emt 0:00:41]} Bxa3 {[%emt 0:02:57]} 10. Nxa3 {[%emt 0:00:02]} Nd7 {[%emt 0:00:23]} 11. Qb2 {[%emt 0:07:06]} Rf6 {[%emt 0:08:01]} 12. Nc2 {[%emt 0:04:18]} Qe8 {[%emt 0:00:50]} 13. Nce1 {[%emt 0:04:25]} Rh6 {[%emt 0:10:09]} 14. Nd3 {[%emt 0:11:15]} g5 {[%emt 0:01:31]} 15. e3 {[%emt 0:21:56]} Nf8 {[%emt 0:05:23]} 16. Nde5 {[%emt 0:01:34]} Qh5 {[%emt 0:01:42]} 17. h3 {[%emt 0:06:18]} g4 {[%emt 0:10:08]} 18. Nd2 {[%emt 0:01:37]} gxh3 {[%emt 0:06:55]} 19. Bf3 {[%emt 0:05:40]} Qg5 {[%emt 0:00:27]} 20. Bxe4 {[%emt 0:08:33]} h2+ {[%emt 0:01:22]} 21. Kg2 {[%emt 0:02:23]} fxe4 22. Rh1 {[%emt 0:02:37]} Qh5 {[%emt 0:01:15]} 23. f3 {[%emt 0:00:21]} Ng6 {[%emt 0:00:29]} 24. Nxg6 {[%emt 0:04:00]} exf3+ {[%emt 0:01:44]} 25. Kf2 {[%emt 0:06:52]} Rxg6 {[%emt 0:03:52]} 26. Nf1 Rh6 {[%emt 0:03:50]} 27. Qb1 {[%emt 0:02:20]} e5 {[%emt 0:05:33]} 28. Rxh2 {[%emt 0:01:03]} Qxh2+ {[%emt 0:12:12]} 29. Nxh2 {[%emt 0:00:01]} Rxh2+ {[%emt 0:00:13]} 30. Kxf3 {[%emt 0:01:43]} e4+ {[%emt 0:03:11]} 31. Kf4 {[%emt 0:00:01]} Bd7 {[%emt 0:00:06]} 32. Qg1 {[%emt 0:02:14]} Rh5 {[%emt 0:02:01]} 33. g4 {[%emt 0:01:18]} Rf8+ {[%emt 0:00:20]} 34. Kg3 {[%emt 0:00:07]} Rf3+ {[%emt 0:00:02]} 35. Kg2 {[%emt 0:00:22]} Bxg4 {[%emt 0:00:06]} 36. Qe1 {[%emt 0:00:54]} Bh3+ {[%emt 0:00:32]} 37. Kg1 {[%emt 0:01:25]} Rg5+ {[%emt 0:00:42]} 38. Kh1 {[%emt 0:00:25]} Bg2+ {[%emt 0:00:08]} 39. Kg1 {[%emt 0:00:53]} Bf1+ {[%emt 0:00:05]} 0-1

[Event "Nacional Masters POR 2017-18"]
[Site "Cascais"]
[Date "2018.08.13"]
[Round "3"]
[White "Santos, Antonio Pereira"]
[Black "Padeiro, Jose Joao Tato"]
[Result "1/2-1/2"]
[ECO "D37"]
[WhiteElo "2194"]
[BlackElo "2241"]
[Annotator "RC"]
[PlyCount "195"]
[EventDate "2018.08.11"]
[EventType "tourn"]
[EventCountry "POR"]
[SourceTitle "playchess.com"]
[Source "ChessBase"]
[SourceQuality "1"]
[TimeControl "5400+30"]

1. d4 {[%emt 0:00:00]} Nf6 {[%emt 0:00:00]} 2. c4 {[%emt 0:00:00]} e6 {[%emt 0:00:00]} 3. Nf3 {[%emt 0:00:00]} d5 {[%emt 0:00:30]} 4. Nc3 {[%emt 0:01:22]} a6 {[%emt 0:03:32]} 5. cxd5 {[%emt 0:02:04]} exd5 {[%emt 0:00:08]} 6. Bg5 {[%emt 0:00:11]} Be7 {[%emt 0:00:48]} 7. e3 {[%emt 0:01:50]} c6 {[%emt 0:00:33]} 8. Qc2 {[%emt 0:00:10]} O-O {[%emt 0:04:22]} 9. Bd3 {[%emt 0:00:23]} Nbd7 {[%emt 0:00:11]} 10. O-O {[%emt 0:00:11]} Re8 {[%emt 0:00:18]} 11. Rab1 {[%emt 0:02:43]} Nf8 {[%emt 0:04:18]} 12. b4 {[%emt 0:00:23]} g6 {[%emt 0:00:19]} 13. a4 {[%emt 0:01:19]} Ne6 {[%emt 0:00:11]} 14. Bh4 {[%emt 0:01:18]} Ng7 {[%emt 0:00:12]} 15. b5 {[%emt 0:05:59]} axb5 {[%emt 0:00:29]} 16. axb5 {[%emt 0:00:09]} Bf5 {[%emt 0:00:16]} 17. bxc6 {[%emt 0:00:09]} bxc6 {[%emt 0:00:24]} 18. Ne5 {[%emt 0:01:47]} Rc8 {[%emt 0:03:36]} 19. Rb7 {[%emt 0:00:32]} Bxd3 {[%emt 0:03:45]} 20. Qxd3 {[%emt 0:00:12]} Rc7 {[%emt 0:00:51]} 21. Rxc7 {[%emt 0:39:30]} Qxc7 {[%emt 0:00:15]} 22. Rc1 {[%emt 0:00:02]} Qb7 {[%emt 0:01:15]} 23. Qb1 {[%emt 0:14:47]} Qa8 {[%emt 0:11:27]} 24. Qa2 {[%emt 0:08:05]} Qb7 {[%emt 0:11:53]} 25. Rb1 {[%emt 0:00:43]} Qc7 {[%emt 0:00:17]} 26. Qa6 {[%emt 0:00:28]} Nf5 {[%emt 0:04:58]} 27. Bxf6 {[%emt 0:02:32]} Bxf6 {[%emt 0:00:10]} 28. Qxc6 {[%emt 0:00:37]} Qd8 {[%emt 0:09:36]} 29. Nd7 {[%emt 0:03:34]} Re6 {[%emt 0:02:09]} 30. Qxd5 {[%emt 0:03:09]} Kg7 {[%emt 0:01:18]} 31. Rb8 {[%emt 0:05:51]} Qe7 {[%emt 0:02:48]} 32. Nxf6 {[%emt 0:00:38]} Qxf6 {[%emt 0:00:57]} 33. Qc5 {[%emt 0:01:31]} Qxd4 {[%emt 0:02:18]} 34. Qxd4+ {[%emt 0:02:05]} Nxd4 {[%emt 0:00:15]} 35. h3 {[%emt 0:00:39]} Nf5 {[%emt 0:01:31]} 36. Rb7 {[%emt 0:00:16]} h5 {[%emt 0:02:20]} 37. Kf1 {[%emt 0:02:02]} Rc6 {[%emt 0:06:26]} 38. Ne4 {[%emt 0:00:15]} Nd6 {[%emt 0:03:23]} 39. Nxd6 {[%emt 0:00:02]} Rxd6 {[%emt 0:00:05]} 40. g4 {[%emt 0:01:05]} hxg4 {[%emt 0:00:10]} 41. hxg4 {[%emt 0:00:01]} g5 {[%emt 0:00:23]} 42. Rb5 {[%emt 0:00:16]} Kg6 {[%emt 0:00:24]} 43. Ke2 {[%emt 0:00:02]} Ra6 {[%emt 0:01:00]} 44. Rd5 {[%emt 0:00:35]} f6 {[%emt 0:00:56]} 45. Kf3 {[%emt 0:00:37]} Ra2 {[%emt 0:00:32]} 46. Rd6 {[%emt 0:00:30]} Rb2 {[%emt 0:00:24]} 47. Kg3 {[%emt 0:00:35]} Rb3 {[%emt 0:00:37]} 48. Rc6 {[%emt 0:00:20]} Ra3 {[%emt 0:00:10]} 49. Kf3 {[%emt 0:00:22]} Ra2 {[%emt 0:00:16]} 50. Kg3 {[%emt 0:01:24]} Ra3 {[%emt 0:00:11]} 51. Rc2 {[%emt 0:00:11]} Rb3 {[%emt 0:00:09]} 52. Kf3 {[%emt 0:00:03]} Ra3 {[%emt 0:01:34]} 53. Rd2 {[%emt 0:00:05]} Ra4 {[%emt 0:00:21]} 54. Kg3 {[%emt 0:00:34]} Ra3 {[%emt 0:00:10]} 55. Kg2 {[%emt 0:00:35]} Rb3 {[%emt 0:00:31]} 56. Kf1 {[%emt 0:00:02]} Ra3 {[%emt 0:00:45]} 57. Ke2 {[%emt 0:00:06]} Ra4 {[%emt 0:00:16]} 58. f3 {[%emt 0:00:10]} Ra3 {[%emt 0:00:12]} 59. Rc2 {[%emt 0:00:11]} Rb3 {[%emt 0:00:15]} 60. Rc6 {[%emt 0:01:04]} Ra3 {[%emt 0:00:19]} 61. Kd2 {[%emt 0:01:04]} Rb3 {[%emt 0:00:29]} 62. Rc3 {[%emt 0:00:10]} Rb6 {[%emt 0:01:52]} 63. Kd3 {[%emt 0:00:07]} Re6 {[%emt 0:02:19]} 64. Rc5 {[%emt 0:00:29]} Ra6 {[%emt 0:00:36]} 65. Kd4 {[%emt 0:00:11]} Ra4+ {[%emt 0:00:20]} 66. Rc4 {[%emt 0:00:14]} Ra3 {[%emt 0:00:18]} 67. Ke4 {[%emt 0:00:13]} Ra8 {[%emt 0:00:47]} 68. Rc5 {[%emt 0:03:29]} Ra4+ {[%emt 0:00:48]} 69. Kd5 {[%emt 0:00:11]} Ra3 {[%emt 0:00:10]} 70. Kd4 {[%emt 0:00:02]} Ra4+ {[%emt 0:00:40]} 71. Rc4 {[%emt 0:00:03]} Ra3 {[%emt 0:00:10]} 72. Rb4 {[%emt 0:00:12]} Ra8 {[%emt 0:01:02]} 73. Rb3 {[%emt 0:02:31]} Re8 {[%emt 0:00:45]} 74. Kd5 {[%emt 0:00:13]} Ra8 {[%emt 0:01:05]} 75. Rc3 {[%emt 0:00:10]} Ra5+ {[%emt 0:00:17]} 76. Kd6 {[%emt 0:00:45]} Ra6+ {[%emt 0:00:04]} 77. Kc7 {[%emt 0:00:28]} Ra7+ {[%emt 0:00:18]} 78. Kb8 {[%emt 0:00:29]} Re7 {[%emt 0:00:49]} 79. Kc8 {[%emt 0:00:19]} Ra7 {[%emt 0:00:35]} 80. e4 {[%emt 0:00:58]} Ra8+ {[%emt 0:00:36]} 81. Kd7 {[%emt 0:00:32]} Ra7+ {[%emt 0:00:05]} 82. Kd6 {[%emt 0:00:24]} Ra6+ {[%emt 0:00:04]} 83. Rc6 {[%emt 0:00:32]} Ra3 {[%emt 0:04:31]} 84. Ke7 {[%emt 0:00:21]} Ra7+ {[%emt 0:00:12]} 85. Kd8 {[%emt 0:00:52]} Ra8+ {[%emt 0:00:34]} 86. Kc7 {[%emt 0:00:26]} Kf7 {[%emt 0:00:44]} 87. Rc3 {[%emt 0:00:23]} Ke6 {[%emt 0:01:16]} 88. Rc6+ {[%emt 0:00:17]} Ke7 {[%emt 0:00:41]} 89. Rc5 {[%emt 0:00:06]} Ra3 {[%emt 0:00:22]} 90. Rf5 {[%emt 0:00:10]} Rc3+ {[%emt 0:00:11]} 91. Kb6 {[%emt 0:00:02]} Ke6 {[%emt 0:00:09]} 92. Kb5 {[%emt 0:00:07]} Rc8 {[%emt 0:01:59]} 93. Kb4 {[%emt 0:00:25]} Rc7 {[%emt 0:00:12]} 94. Kb5 {[%emt 0:00:43]} Rc3 {[%emt 0:00:19]} 95. Kb6 {[%emt 0:00:08]} Rc8 {[%emt 0:00:35]} 96. Kb7 {[%emt 0:00:02]} Rc3 {[%emt 0:00:12]} 97. Kb8 {[%emt 0:00:03]} Rc4 {[%emt 0:00:36]} 98. Kb7 {Kd5} 1/2-1/2

[Event "Nacional Masters POR 2017-18"]
[Site "Cascais"]
[Date "2018.08.12"]
[Round "3"]
[White "Fidalgo, Andre Neves"]
[Black "Dias, Paulo"]
[Result "1-0"]
[ECO "A88"]
[WhiteElo "2187"]
[BlackElo "2328"]
[Annotator "RC"]
[PlyCount "105"]
[EventDate "2018.08.11"]
[EventType "tourn"]
[EventCountry "POR"]
[SourceTitle "playchess.com"]
[Source "ChessBase"]
[SourceQuality "1"]
[TimeControl "5400+30"]

1. d4 {[%emt 0:00:00]} d6 {[%emt 0:00:00]} 2. Nf3 {[%emt 0:00:07]} f5 {[%emt 0:00:37]} 3. g3 {[%emt 0:00:16]} Nf6 {[%emt 0:00:15]} 4. Bg2 {[%emt 0:00:07]} g6 {[%emt 0:00:20]} 5. O-O {[%emt 0:00:41]} Bg7 {[%emt 0:00:05]} 6. c4 {[%emt 0:00:14]} O-O {[%emt 0:00:08]} 7. Nc3 {[%emt 0:00:08]} c6 {[%emt 0:01:05]} 8. Qc2 {[%emt 0:03:12]} Na6 {[%emt 0:02:10]} 9. a3 {[%emt 0:02:50]} Qe8 {[%emt 0:00:16]} 10. e4 {[%emt 0:19:14]} e5 {[%emt 0:06:19]} 11. Re1 {[%emt 0:03:18]} exd4 {[%emt 0:13:03]} 12. exf5 {[%emt 0:07:39]} Bxf5 {[%emt 0:00:59]} 13. Rxe8 {[%emt 0:04:12]} Bxc2 {[%emt 0:00:10]} 14. Rxa8 {[%emt 0:07:12]} Rxa8 {[%emt 0:00:36]} 15. Nxd4 {[%emt 0:00:30]} Bd3 {[%emt 0:00:30]} 16. Bf1 {[%emt 0:00:30]} Nc5 {[%emt 0:00:30]} 17. Be3 {[%emt 0:23:18]} Ng4 {[%emt 0:14:12]} 18. Ne6 {[%emt 0:13:51]} Nxe6 {[%emt 0:07:39]} 19. Bxd3 {[%emt 0:00:08]} Nxe3 {[%emt 0:00:10]} 20. fxe3 {[%emt 0:00:05]} Nc5 {[%emt 0:01:04]} 21. Bc2 {[%emt 0:00:14]} Bxc3 {[%emt 0:00:25]} 22. bxc3 {[%emt 0:00:08]} Kf7 {[%emt 0:03:50]} 23. Kf2 {[%emt 0:00:28]} Ke6 {[%emt 0:00:25]} 24. Ke2 {[%emt 0:00:16]} Rf8 {[%emt 0:03:00]} 25. Rb1 {[%emt 0:00:46]} b6 {[%emt 0:00:28]} 26. Rd1 {[%emt 0:00:22]} Nd7 {[%emt 0:02:16]} 27. Be4 {[%emt 0:01:37]} Ne5 {[%emt 0:00:22]} 28. h3 {[%emt 0:00:14]} Kd7 {[%emt 0:03:09]} 29. Bd3 {[%emt 0:00:14]} Ke7 {[%emt 0:02:13]} 30. a4 {[%emt 0:00:39]} Nxd3 {[%emt 0:02:19]} 31. Rxd3 {[%emt 0:00:46]} Rf5 {[%emt 0:00:20]} 32. Rd2 {[%emt 0:00:13]} Ra5 {[%emt 0:00:48]} 33. Ra2 {[%emt 0:00:07]} b5 {[%emt 0:01:02]} 34. cxb5 {[%emt 0:00:07]} cxb5 {[%emt 0:00:05]} 35. Rb2 {[%emt 0:00:31]} bxa4 {[%emt 0:00:27]} 36. Kd3 {[%emt 0:00:28]} a3 {[%emt 0:02:57]} 37. Ra2 {[%emt 0:00:08]} Ke6 {[%emt 0:00:13]} 38. Kc4 {[%emt 0:00:12]} Ke5 {[%emt 0:00:13]} 39. Kb4 {[%emt 0:00:58]} Ra6 {[%emt 0:00:08]} 40. c4 {[%emt 0:02:30]} Ke4 {[%emt 0:00:54]} 41. c5 {[%emt 0:00:11]} dxc5+ {[%emt 0:01:30]} 42. Kxc5 {[%emt 0:01:34]} Kxe3 {[%emt 0:03:18]} 43. Kb5 {[%emt 0:00:07]} Rb6+ {[%emt 0:00:35]} 44. Kc4 {[%emt 0:00:06]} Rc6+ {[%emt 0:00:33]} 45. Kb4 {[%emt 0:00:38]} a6 {[%emt 0:00:40]} 46. Rxa3+ {[%emt 0:00:18]} Kf2 {[%emt 0:00:16]} 47. g4 {[%emt 0:01:01]} g5 {[%emt 0:01:24]} 48. Rd3 {[%emt 0:02:45]} Rf6 {[%emt 0:03:19]} 49. Rd5 {[%emt 0:01:14]} h6 {[%emt 0:00:18]} 50. Rf5+ {[%emt 0:00:11]} Kg3 {[%emt 0:03:46]} 51. Rxf6 {[%emt 0:00:06]} Kxh3 {[%emt 0:00:04]} 52. Rxh6+ {[%emt 0:00:08]} Kxg4 {[%emt 0:00:06]} 53. Kc3 {[%emt 0:01:24]} 1-0

[Event "Nacional Masters POR 2017-18"]
[Site "Cascais"]
[Date "2018.08.13"]
[Round "4"]
[White "Padeiro, Jose Joao Tato"]
[Black "Santos, Jose Alves"]
[Result "1-0"]
[ECO "D02"]
[WhiteElo "2241"]
[BlackElo "2118"]
[Annotator "ChessBase"]
[PlyCount "134"]
[EventDate "2018.08.11"]
[EventType "tourn"]
[EventCountry "POR"]
[SourceTitle "playchess.com"]
[Source "ChessBase"]
[SourceQuality "1"]
[TimeControl "5400+30"]

1. d4 {[%emt 0:00:00]} d5 {[%emt 0:04:10]} 2. Nf3 {[%emt 0:00:00]} c6 {[%emt 0:00:07]} 3. c4 {[%emt 0:00:00]} e6 {[%emt 0:00:07]} 4. Nc3 {[%emt 0:03:49]} Be7 {[%emt 0:00:58]} 5. Bf4 {[%emt 0:00:26]} f5 {[%emt 0:00:10]} 6. e3 {[%emt 0:00:51]} Nf6 {[%emt 0:00:07]} 7. Qc2 {[%emt 0:00:57]} O-O {[%emt 0:00:55]} 8. O-O-O {[%emt 0:04:32]} Bd7 {[%emt 0:07:33]} 9. Ne5 {[%emt 0:01:34]} Na6 {[%emt 0:08:02]} 10. f3 {[%emt 0:01:54]} Nb4 {[%emt 0:05:06]} 11. Qb3 {[%emt 0:02:20]} Qc8 {[%emt 0:24:40]} 12. Kb1 {[%emt 0:09:37]} dxc4 {[%emt 0:05:18]} 13. Bxc4 {[%emt 0:01:42]} Nbd5 {[%emt 0:00:23]} 14. Rhe1 {[%emt 0:09:06]} b5 {[%emt 0:03:54]} 15. Bxd5 {[%emt 0:04:19]} Nxd5 {[%emt 0:00:35]} 16. Nxd5 {[%emt 0:00:21]} exd5 {[%emt 0:08:39]} 17. Rc1 {[%emt 0:00:13]} a5 {[%emt 0:03:23]} 18. a4 {[%emt 0:14:45]} g5 {[%emt 0:13:56]} 19. Bg3 {[%emt 0:07:22]} f4 {[%emt 0:06:38]} 20. exf4 {[%emt 0:01:24]} gxf4 {[%emt 0:00:36]} 21. Bf2 {[%emt 0:04:31]} Bb4 {[%emt 0:00:54]} 22. Rg1 {[%emt 0:04:25]} Bd2 {[%emt 0:01:02]} 23. Rcd1 {[%emt 0:01:03]} bxa4 {[%emt 0:01:05]} 24. Qxa4 {[%emt 0:02:13]} Bb4 {[%emt 0:00:44]} 25. g3 {[%emt 0:00:06]} Be8 {[%emt 0:00:16]} 26. gxf4+ {[%emt 0:08:11]} Kh8 {[%emt 0:00:01]} 27. Qc2 {[%emt 0:00:18]} Rb8 {[%emt 0:01:38]} 28. Ka1 {[%emt 0:02:43]} Bd6 {[%emt 0:01:15]} 29. f5 {[%emt 0:01:33]} Qxf5 {[%emt 0:00:45]} 30. Qxf5 {[%emt 0:00:31]} Rxf5 {[%emt 0:00:02]} 31. Bg3 {[%emt 0:02:21]} Rb4 {[%emt 0:00:01]} 32. Kb1 {[%emt 0:02:16]} Bb8 {[%emt 0:01:30]} 33. Rc1 {[%emt 0:04:44]} Rxd4 {[%emt 0:01:27]} 34. Nxc6 {[%emt 0:00:25]} Bxc6 {[%emt 0:00:29]} 35. Bxb8 {[%emt 0:01:19]} Rc4 36. Rce1 {[%emt 0:00:26]} h5 {[%emt 0:00:58]} 37. Re7 {[%emt 0:01:34]} d4 {[%emt 0:00:35]} 38. Be5+ {[%emt 0:02:34]} Rxe5 {[%emt 0:00:18]} 39. Rxe5 {[%emt 0:00:04]} Bxf3 {[%emt 0:00:18]} 40. Rc1 {[%emt 0:00:58]} Rb4 {[%emt 0:00:35]} 41. Rf1 {[%emt 0:01:36]} Bg4 {[%emt 0:00:48]} 42. h3 {[%emt 0:00:13]} Bd7 {[%emt 0:00:17]} 43. Rxh5+ {[%emt 0:00:42]} Kg7 {[%emt 0:00:01]} 44. Rxa5 {[%emt 0:00:55]} Bxh3 45. Ra7+ {[%emt 0:00:38]} Kg6 {[%emt 0:00:43]} 46. Rg1+ {[%emt 0:00:28]} Kf6 {[%emt 0:00:10]} 47. Ra5 {[%emt 0:00:45]} d3 {[%emt 0:00:39]} 48. Rd1 {[%emt 0:00:21]} Rf4 {[%emt 0:00:22]} 49. Rxd3 {[%emt 0:00:33]} Bf5 {[%emt 0:00:01]} 50. Rxf5+ {[%emt 0:00:06]} Kxf5 {[%emt 0:00:06]} 51. Re3 {[%emt 0:00:12]} Rb4 {[%emt 0:01:14]} 52. Kc2 {[%emt 0:00:18]} Rc4+ {[%emt 0:00:12]} 53. Kd3 {[%emt 0:00:27]} Rb4 {[%emt 0:00:22]} 54. Kc3 {[%emt 0:00:03]} Rb8 {[%emt 0:00:03]} 55. b4 {[%emt 0:00:12]} Rc8+ {[%emt 0:00:11]} 56. Kd4 {[%emt 0:00:16]} Rd8+ {[%emt 0:00:09]} 57. Kc5 {[%emt 0:00:14]} Rc8+ {[%emt 0:00:00]} 58. Kd6 {[%emt 0:00:38]} Rb8 {[%emt 0:01:15]} 59. Rb3 {[%emt 0:00:11]} Rd8+ {[%emt 0:03:09]} 60. Kc7 {[%emt 0:00:16]} Rd1 {[%emt 0:00:10]} 61. b5 {[%emt 0:00:54]} Rc1+ {[%emt 0:00:02]} 62. Kd6 {[%emt 0:01:10]} Rd1+ {[%emt 0:00:38]} 63. Kc5 {[%emt 0:00:16]} Rc1+ {[%emt 0:00:10]} 64. Kb4 {[%emt 0:00:55]} Ke6 {[%emt 0:00:07]} 65. Rd3 {[%emt 0:00:10]} Rb1+ {[%emt 0:01:54]} 66. Kc5 {[%emt 0:00:05]} Rc1+ {[%emt 0:00:34]} 67. Kb6 {[%emt 0:00:03]} Rb1 {[%emt 0:01:03]} 1-0